[Event "Titled Tuesday Blitz February 14 Late 2023"]
[White "Fernandez, Maria Florencia"]
[Black "Sailer, Mike"]
[WhiteFideId "116459"]
[BlackFideId "2012901"]
[WhiteElo "2129"]
[BlackElo "2109"]
[Result "1-0"]
[Round "03"]
[TimeControl "180+2"]
[Date "2023.02.14"]
[WhiteClock "0:00:05"]
[BlackClock "0:00:01"]

1. d4 {[%clk 0:03:00]}  d5 {[%clk 0:02:59]} 2. c4 {[%clk 0:03:00]}  Bf5 {[%clk 0:03:00]} 3. Nc3 {[%clk 0:02:55]}  e6 {[%clk 0:03:00]} 4. Qb3 {[%clk 0:02:50]}  Nc6 {[%clk 0:02:58]} 5. e3 {[%clk 0:02:43]}  Nb4 {[%clk 0:02:51]} 6. e4 {[%clk 0:02:35]}  dxe4 {[%clk 0:02:46]} 7. Be3 {[%clk 0:02:22]}  Rb8 {[%clk 0:02:29]} 8. O-O-O {[%clk 0:02:11]}  Nf6 {[%clk 0:02:13]} 9. d5 {[%clk 0:01:52]}  exd5 {[%clk 0:01:49]} 10. cxd5 {[%clk 0:01:41]}  Nd3+ {[%clk 0:01:35]} 11. Bxd3 {[%clk 0:01:41]}  exd3 {[%clk 0:01:35]} 12. Bxa7 {[%clk 0:01:31]}  Bd6 {[%clk 0:01:08]} 13. Bxb8 {[%clk 0:01:27]}  Qxb8 {[%clk 0:01:08]} 14. Re1+ {[%clk 0:01:23]}  Kf8 {[%clk 0:01:07]} 15. Nf3 {[%clk 0:00:59]}  g5 {[%clk 0:00:46]} 16. Nd2 {[%clk 0:00:45]}  Kg7 {[%clk 0:00:42]} 17. f3 {[%clk 0:00:43]}  Qa7 {[%clk 0:00:36]} 18. g3 {[%clk 0:00:21]}  Qf2 {[%clk 0:00:29]} 19. Ref1 {[%clk 0:00:21]}  Qg2 {[%clk 0:00:27]} 20. Nd1 {[%clk 0:00:17]}  Re8 {[%clk 0:00:24]} 21. Rfg1 {[%clk 0:00:16]}  Qe2 {[%clk 0:00:13]} 22. Qc4 {[%clk 0:00:15]}  Qe5 {[%clk 0:00:11]} 23. g4 {[%clk 0:00:11]}  Bg6 {[%clk 0:00:10]} 24. Re1 {[%clk 0:00:11]}  Qxe1 {[%clk 0:00:10]} 25. Rxe1 {[%clk 0:00:12]}  Rxe1 {[%clk 0:00:10]} 26. Qd4 {[%clk 0:00:10]}  Bf4 {[%clk 0:00:10]} 27. h4 {[%clk 0:00:05]}  Re2 {[%clk 0:00:08]} 28. hxg5 {[%clk 0:00:04]}  Bxd2+ {[%clk 0:00:08]} 29. Kb1 {[%clk 0:00:04]}  Bxg5 {[%clk 0:00:09]} 30. f4 {[%clk 0:00:04]}  Bxf4 {[%clk 0:00:07]} 31. Qxf4 {[%clk 0:00:04]}  d2+ {[%clk 0:00:06]} 32. Ka1 {[%clk 0:00:04]}  Re1 {[%clk 0:00:06]} 33. Qxd2 {[%clk 0:00:04]}  Rh1 {[%clk 0:00:06]} 34. g5 {[%clk 0:00:05]}  Ne4 {[%clk 0:00:06]} 35. Qd4+ {[%clk 0:00:05]}  Kg8 {[%clk 0:00:06]} 36. a4 {[%clk 0:00:04]}  Nf2 {[%clk 0:00:04]} 37. Qxf2 {[%clk 0:00:04]}  Rxd1+ {[%clk 0:00:05]} 38. Ka2 {[%clk 0:00:05]}  Rxd5 {[%clk 0:00:05]} 39. Qf6 {[%clk 0:00:04]}  Rd6 {[%clk 0:00:04]} 40. Qe7 {[%clk 0:00:04]}  Bf5 {[%clk 0:00:02]} 41. Qxc7 {[%clk 0:00:03]}  Be6+ {[%clk 0:00:01]} 42. Ka3 {[%clk 0:00:03]}  Rd3+ {[%clk 0:00:01]} 43. Kb4 {[%clk 0:00:03]}  Rd4+ {[%clk 0:00:02]} 44. Ka5 {[%clk 0:00:04]}  Rd5+ {[%clk 0:00:02]} 45. Kb6 {[%clk 0:00:04]}  Rxg5 {[%clk 0:00:02]} 46. Kxb7 {[%clk 0:00:04]}  Rg2 {[%clk 0:00:01]} 47. Qd8+ {[%clk 0:00:04]}  Kg7 {[%clk 0:00:01]} 48. Qd4+ {[%clk 0:00:05]} 1-0


[Site "https://www.chess.com"]

[Event "Titled Tuesday Blitz February 14 Late 2023"]
[White "Davalos Prieto, Abel Justo"]
[Black "Todev, Simeon"]
[WhiteFideId "5102766"]
[BlackFideId "2925133"]
[WhiteElo "2029"]
[BlackElo "2033"]
[Result "0-1"]
[Round "03"]
[TimeControl "180+2"]
[Date "2023.02.14"]
[WhiteClock "0:00:01"]
[BlackClock "0:00:06"]

1. c4 {[%clk 0:03:00]}  g6 {[%clk 0:02:54]} 2. Nc3 {[%clk 0:03:00]}  Bg7 {[%clk 0:02:55]} 3. e4 {[%clk 0:03:00]}  Nf6 {[%clk 0:02:56]} 4. d4 {[%clk 0:02:59]}  d6 {[%clk 0:02:57]} 5. Be2 {[%clk 0:02:59]}  O-O {[%clk 0:02:57]} 6. Bg5 {[%clk 0:02:59]}  e5 {[%clk 0:02:58]} 7. dxe5 {[%clk 0:02:57]}  dxe5 {[%clk 0:02:59]} 8. Qxd8 {[%clk 0:02:55]}  Rxd8 {[%clk 0:02:51]} 9. Nd5 {[%clk 0:02:55]}  Nbd7 {[%clk 0:02:38]} 10. Rd1 {[%clk 0:02:29]}  Rf8 {[%clk 0:02:23]} 11. Nxc7 {[%clk 0:02:24]}  Rb8 {[%clk 0:02:22]} 12. f3 {[%clk 0:02:20]}  h6 {[%clk 0:02:21]} 13. Be3 {[%clk 0:02:19]}  Nb6 {[%clk 0:02:18]} 14. Nd5 {[%clk 0:02:14]}  Be6 {[%clk 0:02:15]} 15. Nxb6 {[%clk 0:02:12]}  axb6 {[%clk 0:02:14]} 16. Bxb6 {[%clk 0:02:13]}  Nd7 {[%clk 0:02:14]} 17. Be3 {[%clk 0:02:11]}  f5 {[%clk 0:02:14]} 18. exf5 {[%clk 0:02:08]}  gxf5 {[%clk 0:02:13]} 19. b3 {[%clk 0:02:05]}  e4 {[%clk 0:02:11]} 20. f4 {[%clk 0:02:04]}  Ra8 {[%clk 0:02:06]} 21. a4 {[%clk 0:02:02]}  Nf6 {[%clk 0:02:05]} 22. h3 {[%clk 0:01:53]}  h5 {[%clk 0:01:55]} 23. Kf2 {[%clk 0:01:43]}  h4 {[%clk 0:01:44]} 24. Rd6 {[%clk 0:01:40]}  Rfe8 {[%clk 0:01:29]} 25. Bd1 {[%clk 0:01:35]}  b5 {[%clk 0:01:27]} 26. axb5 {[%clk 0:01:31]}  Ra2+ {[%clk 0:01:23]} 27. Ne2 {[%clk 0:01:31]}  Nh5 {[%clk 0:01:21]} 28. b6 {[%clk 0:01:21]}  Ng3 {[%clk 0:01:20]} 29. Re1 {[%clk 0:01:18]}  Bf7 {[%clk 0:01:17]} 30. Kg1 {[%clk 0:01:05]}  Nxe2+ {[%clk 0:01:12]} 31. Bxe2 {[%clk 0:01:04]}  Bc3 {[%clk 0:01:12]} 32. Rdd1 {[%clk 0:00:56]}  Bxe1 {[%clk 0:01:10]} 33. Rxe1 {[%clk 0:00:56]}  Rb2 {[%clk 0:01:09]} 34. Bd1 {[%clk 0:00:47]}  Rd8 {[%clk 0:01:00]} 35. c5 {[%clk 0:00:41]}  Bd5 {[%clk 0:00:46]} 36. Bh5 {[%clk 0:00:29]}  Bc6 {[%clk 0:00:37]} 37. Bg6 {[%clk 0:00:24]}  Rf8 {[%clk 0:00:31]} 38. Bd4 {[%clk 0:00:20]}  Rxb3 {[%clk 0:00:27]} 39. Be5 {[%clk 0:00:19]}  e3 {[%clk 0:00:23]} 40. Bd6 {[%clk 0:00:17]}  Ra8 {[%clk 0:00:12]} 41. Bxf5 {[%clk 0:00:15]}  Rb2 {[%clk 0:00:11]} 42. Be6+ {[%clk 0:00:14]}  Kh7 {[%clk 0:00:09]} 43. Bf5+ {[%clk 0:00:08]}  Kh6 {[%clk 0:00:09]} 44. Rxe3 {[%clk 0:00:01]}  Ra1+ {[%clk 0:00:06]} 0-1


[Site "https://www.chess.com"]

[Event "Titled Tuesday Blitz February 14 Late 2023"]
[White "Souza, Gustavo Horokoski De"]
[Black "Gomes, Luiz Alexandre de Souza"]
[WhiteFideId "2146584"]
[BlackFideId "2102790"]
[WhiteElo "1943"]
[BlackElo "2254"]
[Result "0-1"]
[Round "03"]
[TimeControl "180+2"]
[Date "2023.02.14"]
[WhiteClock "0:00:03"]
[BlackClock "0:00:31"]

1. d4 {[%clk 0:02:59]}  d5 {[%clk 0:02:59]} 2. c4 {[%clk 0:02:59]}  e6 {[%clk 0:02:59]} 3. Nc3 {[%clk 0:02:59]}  Nf6 {[%clk 0:02:59]} 4. cxd5 {[%clk 0:02:59]}  exd5 {[%clk 0:02:59]} 5. Bg5 {[%clk 0:02:59]}  c6 {[%clk 0:02:59]} 6. e3 {[%clk 0:03:00]}  Be7 {[%clk 0:02:59]} 7. Qc2 {[%clk 0:02:59]}  Nbd7 {[%clk 0:02:59]} 8. Bd3 {[%clk 0:03:00]}  O-O {[%clk 0:03:00]} 9. Nge2 {[%clk 0:02:58]}  Re8 {[%clk 0:03:00]} 10. O-O {[%clk 0:02:58]}  Nf8 {[%clk 0:03:00]} 11. f3 {[%clk 0:02:56]}  g6 {[%clk 0:02:57]} 12. Rad1 {[%clk 0:02:43]}  Ne6 {[%clk 0:02:57]} 13. Bh4 {[%clk 0:02:40]}  Nh5 {[%clk 0:02:56]} 14. Bf2 {[%clk 0:02:32]}  Bd7 {[%clk 0:02:53]} 15. Rfe1 {[%clk 0:02:32]}  Rc8 {[%clk 0:02:53]} 16. e4 {[%clk 0:02:24]}  dxe4 {[%clk 0:02:45]} 17. fxe4 {[%clk 0:02:24]}  Qa5 {[%clk 0:02:44]} 18. Ng3 {[%clk 0:02:18]}  Nhf4 {[%clk 0:02:41]} 19. Bf1 {[%clk 0:02:15]}  b5 {[%clk 0:02:33]} 20. a3 {[%clk 0:01:59]}  b4 {[%clk 0:02:29]} 21. axb4 {[%clk 0:01:57]}  Qxb4 {[%clk 0:02:29]} 22. Nce2 {[%clk 0:01:53]}  Bg5 {[%clk 0:02:13]} 23. Nxf4 {[%clk 0:01:52]}  Nxf4 {[%clk 0:02:10]} 24. Ne2 {[%clk 0:01:48]}  Bg4 {[%clk 0:02:05]} 25. h3 {[%clk 0:01:44]}  Be6 {[%clk 0:02:00]} 26. Nxf4 {[%clk 0:01:41]}  Bxf4 {[%clk 0:02:01]} 27. Ra1 {[%clk 0:01:26]}  a5 {[%clk 0:01:50]} 28. Qd3 {[%clk 0:01:14]}  a4 {[%clk 0:01:43]} 29. Reb1 {[%clk 0:00:47]}  Bb3 {[%clk 0:01:42]} 30. Be1 {[%clk 0:00:38]}  Qb8 {[%clk 0:01:31]} 31. Bc3 {[%clk 0:00:35]}  Rcd8 {[%clk 0:01:23]} 32. Re1 {[%clk 0:00:34]}  c5 {[%clk 0:01:17]} 33. d5 {[%clk 0:00:34]}  Be5 {[%clk 0:01:12]} 34. Rac1 {[%clk 0:00:28]}  c4 {[%clk 0:01:09]} 35. Qf3 {[%clk 0:00:24]}  a3 {[%clk 0:00:55]} 36. bxa3 {[%clk 0:00:20]}  Qa7+ {[%clk 0:00:55]} 37. Kh1 {[%clk 0:00:17]}  Qxa3 {[%clk 0:00:52]} 38. Bxe5 {[%clk 0:00:16]}  Rxe5 {[%clk 0:00:53]} 39. Bxc4 {[%clk 0:00:16]}  Rb8 {[%clk 0:00:46]} 40. Re3 {[%clk 0:00:14]}  Qxc1+ {[%clk 0:00:45]} 41. Kh2 {[%clk 0:00:13]}  Bxc4 {[%clk 0:00:37]} 42. Rc3 {[%clk 0:00:13]}  Qf1 {[%clk 0:00:36]} 43. Qg3 {[%clk 0:00:11]}  Rbe8 {[%clk 0:00:37]} 44. d6 {[%clk 0:00:10]}  Qf6 {[%clk 0:00:32]} 45. Rxc4 {[%clk 0:00:07]}  Qxd6 {[%clk 0:00:31]} 46. Ra4 {[%clk 0:00:04]}  Qe6 {[%clk 0:00:31]} 47. Qf3 {[%clk 0:00:03]}  Rxe4 {[%clk 0:00:31]} 0-1


[Site "https://www.chess.com"]

[Event "Titled Tuesday Blitz February 14 Late 2023"]
[White "Jesusesmifuerza"]
[Black "Szente Varga, Fruzsina"]
[BlackFideId "712264"]
[WhiteElo "2001"]
[BlackElo "2075"]
[Result "0-1"]
[Round "03"]
[TimeControl "180+2"]
[Date "2023.02.14"]
[WhiteClock "0:00:28"]
[BlackClock "0:00:37"]

1. d4 {[%clk 0:03:00]}  Nf6 {[%clk 0:02:57]} 2. Nc3 {[%clk 0:03:01]}  d5 {[%clk 0:02:57]} 3. Bf4 {[%clk 0:03:01]}  g6 {[%clk 0:02:56]} 4. e3 {[%clk 0:02:59]}  Bg7 {[%clk 0:02:56]} 5. Nb5 {[%clk 0:03:00]}  Na6 {[%clk 0:02:55]} 6. h3 {[%clk 0:02:53]}  O-O {[%clk 0:02:54]} 7. Nf3 {[%clk 0:02:52]}  c6 {[%clk 0:02:54]} 8. Nc3 {[%clk 0:02:52]}  Nc7 {[%clk 0:02:55]} 9. Be2 {[%clk 0:02:45]}  Ne4 {[%clk 0:02:43]} 10. Nxe4 {[%clk 0:02:41]}  dxe4 {[%clk 0:02:44]} 11. Nd2 {[%clk 0:02:42]}  f5 {[%clk 0:02:43]} 12. O-O {[%clk 0:02:37]}  Nd5 {[%clk 0:02:42]} 13. Bh2 {[%clk 0:02:32]}  e5 {[%clk 0:02:36]} 14. dxe5 {[%clk 0:02:17]}  Qe7 {[%clk 0:02:36]} 15. Nc4 {[%clk 0:02:16]}  b5 {[%clk 0:02:32]} 16. Nd6 {[%clk 0:02:15]}  Bxe5 {[%clk 0:02:32]} 17. Bxe5 {[%clk 0:02:12]}  Qxe5 {[%clk 0:02:33]} 18. Nxc8 {[%clk 0:02:12]}  Raxc8 {[%clk 0:02:32]} 19. Qd4 {[%clk 0:02:10]}  Qxd4 {[%clk 0:02:24]} 20. exd4 {[%clk 0:02:09]}  Rfd8 {[%clk 0:02:22]} 21. c4 {[%clk 0:02:06]}  Nf4 {[%clk 0:02:20]} 22. Rfe1 {[%clk 0:01:49]}  Rxd4 {[%clk 0:02:09]} 23. cxb5 {[%clk 0:01:42]}  Nxe2+ {[%clk 0:02:08]} 24. Rxe2 {[%clk 0:01:43]}  cxb5 {[%clk 0:02:08]} 25. Kf1 {[%clk 0:01:34]}  Kf7 {[%clk 0:02:05]} 26. Ke1 {[%clk 0:01:33]}  Ke6 {[%clk 0:02:05]} 27. Rd1 {[%clk 0:01:33]}  Rcd8 {[%clk 0:01:39]} 28. Rxd4 {[%clk 0:01:31]}  Rxd4 {[%clk 0:01:40]} 29. Rc2 {[%clk 0:01:31]}  Rc4 {[%clk 0:01:32]} 30. Rd2 {[%clk 0:01:27]}  h5 {[%clk 0:01:20]} 31. Kd1 {[%clk 0:01:20]}  g5 {[%clk 0:01:13]} 32. Rd8 {[%clk 0:01:19]}  Ke5 {[%clk 0:01:11]} 33. g3 {[%clk 0:01:13]}  Rd4+ {[%clk 0:01:11]} 34. Rxd4 {[%clk 0:01:10]}  Kxd4 {[%clk 0:01:12]} 35. Kd2 {[%clk 0:01:10]}  f4 {[%clk 0:01:05]} 36. Ke2 {[%clk 0:00:52]}  a5 {[%clk 0:00:42]} 37. gxf4 {[%clk 0:00:38]}  gxf4 {[%clk 0:00:43]} 38. h4 {[%clk 0:00:38]}  a4 {[%clk 0:00:37]} 39. a3 {[%clk 0:00:37]}  Kc4 {[%clk 0:00:38]} 40. Kd2 {[%clk 0:00:28]}  Kb3 {[%clk 0:00:37]} 0-1


[Site "https://www.chess.com"]

[Event "Titled Tuesday Blitz February 14 Late 2023"]
[White "Melkumyan, Hrant"]
[Black "Naroditsky, Daniel"]
[WhiteFideId "13302485"]
[BlackFideId "2026961"]
[WhiteElo "2645"]
[BlackElo "2618"]
[Result "1/2-1/2"]
[Round "04"]
[TimeControl "180+2"]
[Date "2023.02.14"]
[WhiteClock "0:00:10"]
[BlackClock "0:00:03"]

1. d4 {[%clk 0:03:00]}  Nf6 {[%clk 0:03:00]} 2. c4 {[%clk 0:03:00]}  g6 {[%clk 0:03:01]} 3. Nc3 {[%clk 0:02:56]}  Bg7 {[%clk 0:03:01]} 4. e4 {[%clk 0:02:56]}  d6 {[%clk 0:03:02]} 5. Be2 {[%clk 0:02:57]}  O-O {[%clk 0:03:02]} 6. h4 {[%clk 0:02:57]}  c5 {[%clk 0:02:58]} 7. d5 {[%clk 0:02:57]}  e6 {[%clk 0:02:53]} 8. h5 {[%clk 0:02:58]}  exd5 {[%clk 0:02:53]} 9. exd5 {[%clk 0:02:59]}  Re8 {[%clk 0:02:52]} 10. h6 {[%clk 0:02:59]}  Bh8 {[%clk 0:02:53]} 11. Bg5 {[%clk 0:03:00]}  Qb6 {[%clk 0:02:51]} 12. b3 {[%clk 0:02:55]}  Ne4 {[%clk 0:02:44]} 13. Nxe4 {[%clk 0:02:51]}  Rxe4 {[%clk 0:02:45]} 14. Nf3 {[%clk 0:02:38]}  Bg4 {[%clk 0:02:26]} 15. O-O {[%clk 0:02:38]}  Nd7 {[%clk 0:02:22]} 16. Bd3 {[%clk 0:02:29]}  Ree8 {[%clk 0:02:21]} 17. Rc1 {[%clk 0:02:17]}  Qa5 {[%clk 0:02:03]} 18. Rc2 {[%clk 0:02:16]}  Ne5 {[%clk 0:01:56]} 19. Be2 {[%clk 0:02:15]}  Bf5 {[%clk 0:01:54]} 20. Rd2 {[%clk 0:02:08]}  Nxf3+ {[%clk 0:01:45]} 21. Bxf3 {[%clk 0:02:08]}  Qc3 {[%clk 0:01:46]} 22. Re1 {[%clk 0:02:01]}  Bc2 {[%clk 0:01:02]} 23. Qc1 {[%clk 0:01:36]}  Bf5 {[%clk 0:00:53]} 24. Qd1 {[%clk 0:01:35]}  Bc2 {[%clk 0:00:53]} 25. Qc1 {[%clk 0:00:55]}  Bf5 {[%clk 0:00:39]} 26. Rde2 {[%clk 0:00:52]}  Qxc1 {[%clk 0:00:33]} 27. Bxc1 {[%clk 0:00:53]}  Rxe2 {[%clk 0:00:27]} 28. Rxe2 {[%clk 0:00:54]}  Be5 {[%clk 0:00:27]} 29. Be4 {[%clk 0:00:48]}  Bxe4 {[%clk 0:00:17]} 30. Rxe4 {[%clk 0:00:47]}  f5 {[%clk 0:00:15]} 31. Re2 {[%clk 0:00:47]}  Kf7 {[%clk 0:00:15]} 32. Bg5 {[%clk 0:00:45]}  Re8 {[%clk 0:00:13]} 33. Kf1 {[%clk 0:00:40]}  a6 {[%clk 0:00:10]} 34. g3 {[%clk 0:00:40]}  Bd4 {[%clk 0:00:07]} 35. Rxe8 {[%clk 0:00:38]}  Kxe8 {[%clk 0:00:08]} 36. Ke2 {[%clk 0:00:38]}  Kd7 {[%clk 0:00:06]} 37. f3 {[%clk 0:00:34]}  Be5 {[%clk 0:00:07]} 38. g4 {[%clk 0:00:33]}  fxg4 {[%clk 0:00:03]} 39. fxg4 {[%clk 0:00:34]}  Bd4 {[%clk 0:00:04]} 40. Kd3 {[%clk 0:00:34]}  Be5 {[%clk 0:00:04]} 41. Ke4 {[%clk 0:00:35]}  Bg3 {[%clk 0:00:03]} 42. Be3 {[%clk 0:00:35]}  b6 {[%clk 0:00:02]} 43. Bd2 {[%clk 0:00:34]}  Be5 {[%clk 0:00:03]} 44. b4 {[%clk 0:00:30]}  Ke7 {[%clk 0:00:02]} 45. Be3 {[%clk 0:00:25]}  Bg3 {[%clk 0:00:02]} 46. Bd2 {[%clk 0:00:16]}  Be5 {[%clk 0:00:02]} 47. a4 {[%clk 0:00:15]}  Kd7 {[%clk 0:00:01]} 48. b5 {[%clk 0:00:09]}  axb5 {[%clk 0:00:01]} 49. cxb5 {[%clk 0:00:08]}  Bg3 {[%clk 0:00:01]} 50. Kd3 {[%clk 0:00:08]}  Be5 {[%clk 0:00:02]} 51. Kc4 {[%clk 0:00:08]}  Kc7 {[%clk 0:00:02]} 52. a5 {[%clk 0:00:07]}  bxa5 {[%clk 0:00:03]} 53. Bxa5+ {[%clk 0:00:08]}  Kb7 {[%clk 0:00:04]} 54. Bd2 {[%clk 0:00:09]}  Bg3 {[%clk 0:00:03]} 55. Be3 {[%clk 0:00:09]}  Be5 {[%clk 0:00:03]} 56. Bg5 {[%clk 0:00:09]}  Kb6 {[%clk 0:00:02]} 57. Bd2 {[%clk 0:00:10]}  Kb7 {[%clk 0:00:03]} 58. Be3 {[%clk 0:00:10]} 1/2-1/2


[Site "https://www.chess.com"]

[Event "Titled Tuesday Blitz February 14 Late 2023"]
[White "Yu, Yangyi"]
[Black "Kamsky, Gata"]
[WhiteFideId "8603820"]
[BlackFideId "2000024"]
[WhiteElo "2729"]
[BlackElo "2665"]
[Result "1/2-1/2"]
[Round "04"]
[TimeControl "180+2"]
[Date "2023.02.14"]
[WhiteClock "0:00:22"]
[BlackClock "0:00:26"]

1. Nf3 {[%clk 0:03:00]}  Nf6 {[%clk 0:02:58]} 2. g3 {[%clk 0:03:01]}  g6 {[%clk 0:02:50]} 3. Bg2 {[%clk 0:03:01]}  Bg7 {[%clk 0:02:51]} 4. c4 {[%clk 0:03:01]}  c6 {[%clk 0:02:50]} 5. d4 {[%clk 0:03:00]}  d5 {[%clk 0:02:50]} 6. Qa4 {[%clk 0:03:00]}  O-O {[%clk 0:02:50]} 7. O-O {[%clk 0:03:00]}  Qb6 {[%clk 0:02:48]} 8. Nc3 {[%clk 0:02:46]}  Be6 {[%clk 0:02:42]} 9. cxd5 {[%clk 0:02:24]}  cxd5 {[%clk 0:02:37]} 10. Ng5 {[%clk 0:02:24]}  Bd7 {[%clk 0:02:36]} 11. Qd1 {[%clk 0:02:20]}  Nc6 {[%clk 0:02:33]} 12. e3 {[%clk 0:02:18]}  e6 {[%clk 0:02:29]} 13. b3 {[%clk 0:02:17]}  Rfc8 {[%clk 0:02:28]} 14. Bb2 {[%clk 0:02:16]}  Ne7 {[%clk 0:02:26]} 15. Nf3 {[%clk 0:02:12]}  Ne4 {[%clk 0:02:13]} 16. Nxe4 {[%clk 0:02:06]}  dxe4 {[%clk 0:02:13]} 17. Nd2 {[%clk 0:02:06]}  Bb5 {[%clk 0:02:11]} 18. Re1 {[%clk 0:01:59]}  f5 {[%clk 0:02:11]} 19. f3 {[%clk 0:01:48]}  exf3 {[%clk 0:02:04]} 20. Nxf3 {[%clk 0:01:48]}  Bc6 {[%clk 0:02:01]} 21. Rc1 {[%clk 0:01:43]}  Bd5 {[%clk 0:01:55]} 22. Qd2 {[%clk 0:01:38]}  Bh6 {[%clk 0:01:41]} 23. Ne5 {[%clk 0:01:06]}  Bxg2 {[%clk 0:01:35]} 24. Qxg2 {[%clk 0:00:56]}  Rxc1 {[%clk 0:01:33]} 25. Bxc1 {[%clk 0:00:55]}  Nd5 {[%clk 0:01:31]} 26. Nc4 {[%clk 0:00:54]}  Qb4 {[%clk 0:01:23]} 27. Bd2 {[%clk 0:00:51]}  Qf8 {[%clk 0:01:21]} 28. e4 {[%clk 0:00:50]}  Bxd2 {[%clk 0:01:18]} 29. Qxd2 {[%clk 0:00:47]}  fxe4 {[%clk 0:01:15]} 30. Rxe4 {[%clk 0:00:47]}  Qf6 {[%clk 0:01:05]} 31. Qf2 {[%clk 0:00:37]}  Kg7 {[%clk 0:00:52]} 32. a4 {[%clk 0:00:33]}  Qxf2+ {[%clk 0:00:49]} 33. Kxf2 {[%clk 0:00:33]}  Kf6 {[%clk 0:00:49]} 34. Re1 {[%clk 0:00:31]}  Rd8 {[%clk 0:00:48]} 35. Kf3 {[%clk 0:00:27]}  Nb4 {[%clk 0:00:47]} 36. Rd1 {[%clk 0:00:26]}  Nc6 {[%clk 0:00:47]} 37. Ke4 {[%clk 0:00:26]}  Rd5 {[%clk 0:00:38]} 38. Ne3 {[%clk 0:00:25]}  Rd8 {[%clk 0:00:34]} 39. d5 {[%clk 0:00:25]}  exd5+ {[%clk 0:00:32]} 40. Nxd5+ {[%clk 0:00:26]}  Kg7 {[%clk 0:00:29]} 41. Rf1 {[%clk 0:00:21]}  Re8+ {[%clk 0:00:28]} 42. Kd3 {[%clk 0:00:21]}  Rd8 {[%clk 0:00:26]} 43. Ke4 {[%clk 0:00:22]}  Re8+ {[%clk 0:00:26]} 44. Kd3 {[%clk 0:00:22]}  Rd8 {[%clk 0:00:26]} 45. Ke4 {[%clk 0:00:22]} 1/2-1/2


[Site "https://www.chess.com"]

[Event "Titled Tuesday Blitz February 14 Late 2023"]
[White "Andreikin, Dmitry"]
[Black "Remizov, Yaroslav"]
[WhiteFideId "4158814"]
[BlackFideId "34134015"]
[WhiteElo "2729"]
[BlackElo "2421"]
[Result "1/2-1/2"]
[Round "04"]
[TimeControl "180+2"]
[Date "2023.02.14"]
[WhiteClock "0:00:18"]
[BlackClock "0:00:07"]

1. c4 {[%clk 0:03:00]}  Nf6 {[%clk 0:02:59]} 2. Nc3 {[%clk 0:03:00]}  c5 {[%clk 0:02:54]} 3. Nf3 {[%clk 0:02:59]}  g6 {[%clk 0:02:54]} 4. d4 {[%clk 0:02:59]}  cxd4 {[%clk 0:02:53]} 5. Nxd4 {[%clk 0:02:59]}  Bg7 {[%clk 0:02:53]} 6. e4 {[%clk 0:02:59]}  O-O {[%clk 0:02:52]} 7. Be2 {[%clk 0:03:00]}  d6 {[%clk 0:02:51]} 8. O-O {[%clk 0:02:59]}  Nc6 {[%clk 0:02:48]} 9. Be3 {[%clk 0:03:00]}  Bd7 {[%clk 0:02:48]} 10. Nc2 {[%clk 0:02:58]}  a6 {[%clk 0:02:46]} 11. Rc1 {[%clk 0:02:57]}  Rc8 {[%clk 0:02:46]} 12. h3 {[%clk 0:02:56]}  Na5 {[%clk 0:02:26]} 13. Na3 {[%clk 0:02:53]}  Nc6 {[%clk 0:02:25]} 14. Nc2 {[%clk 0:02:52]}  Na5 {[%clk 0:02:24]} 15. Na3 {[%clk 0:02:47]}  Nc6 {[%clk 0:02:24]} 16. Qd2 {[%clk 0:02:47]}  Qa5 {[%clk 0:02:18]} 17. Rfd1 {[%clk 0:02:40]}  Rfd8 {[%clk 0:02:12]} 18. Nc2 {[%clk 0:02:37]}  Ne5 {[%clk 0:02:07]} 19. b4 {[%clk 0:02:23]}  Qc7 {[%clk 0:02:06]} 20. Na3 {[%clk 0:02:17]}  Be6 {[%clk 0:01:47]} 21. Nd5 {[%clk 0:02:12]}  Bxd5 {[%clk 0:01:30]} 22. exd5 {[%clk 0:02:13]}  Ned7 {[%clk 0:01:10]} 23. c5 {[%clk 0:02:02]}  dxc5 {[%clk 0:01:07]} 24. bxc5 {[%clk 0:02:03]}  Ne4 {[%clk 0:01:06]} 25. d6 {[%clk 0:01:48]}  exd6 {[%clk 0:01:05]} 26. cxd6 {[%clk 0:01:43]}  Qxc1 {[%clk 0:01:04]} 27. Qxc1 {[%clk 0:01:42]}  Rxc1 {[%clk 0:01:04]} 28. Rxc1 {[%clk 0:01:43]}  Nxd6 {[%clk 0:01:01]} 29. Nc4 {[%clk 0:01:38]}  Nxc4 {[%clk 0:01:00]} 30. Rxc4 {[%clk 0:01:39]}  Be5 {[%clk 0:00:55]} 31. Bf3 {[%clk 0:01:38]}  b5 {[%clk 0:00:48]} 32. Rc6 {[%clk 0:01:38]}  a5 {[%clk 0:00:48]} 33. g4 {[%clk 0:01:31]}  b4 {[%clk 0:00:44]} 34. Ra6 {[%clk 0:01:29]}  Bc3 {[%clk 0:00:36]} 35. Kg2 {[%clk 0:01:16]}  Ne5 {[%clk 0:00:30]} 36. Be2 {[%clk 0:01:15]}  Nd3 {[%clk 0:00:24]} 37. Bxd3 {[%clk 0:01:07]}  Rxd3 {[%clk 0:00:25]} 38. Rxa5 {[%clk 0:01:07]}  Kg7 {[%clk 0:00:20]} 39. Ra4 {[%clk 0:01:02]}  Rd1 {[%clk 0:00:19]} 40. g5 {[%clk 0:01:01]}  Rb1 {[%clk 0:00:16]} 41. Bc5 {[%clk 0:00:43]}  Rb2 {[%clk 0:00:15]} 42. Ra8 {[%clk 0:00:40]}  h5 {[%clk 0:00:15]} 43. Bf8+ {[%clk 0:00:27]}  Kh7 {[%clk 0:00:15]} 44. Ra7 {[%clk 0:00:28]}  Bd4 {[%clk 0:00:12]} 45. Rxf7+ {[%clk 0:00:23]}  Kg8 {[%clk 0:00:12]} 46. Rf4 {[%clk 0:00:20]}  Be5 {[%clk 0:00:09]} 47. Rxb4 {[%clk 0:00:20]}  Rxa2 {[%clk 0:00:07]} 48. Bc5 {[%clk 0:00:20]}  Kf7 {[%clk 0:00:07]} 49. Rb6 {[%clk 0:00:19]}  Ra5 {[%clk 0:00:05]} 50. Be3 {[%clk 0:00:19]}  Rd5 {[%clk 0:00:05]} 51. f4 {[%clk 0:00:18]}  Bd6 {[%clk 0:00:05]} 52. Kf3 {[%clk 0:00:18]}  Rd3 {[%clk 0:00:06]} 53. Ke4 {[%clk 0:00:18]}  Rxe3+ {[%clk 0:00:06]} 54. Kxe3 {[%clk 0:00:14]}  Bc5+ {[%clk 0:00:06]} 55. Ke4 {[%clk 0:00:15]}  Bxb6 {[%clk 0:00:06]} 56. f5 {[%clk 0:00:16]}  Bd8 {[%clk 0:00:05]} 57. fxg6+ {[%clk 0:00:14]}  Kxg6 {[%clk 0:00:06]} 58. Kf3 {[%clk 0:00:15]}  Kxg5 {[%clk 0:00:06]} 59. Kg2 {[%clk 0:00:16]}  Kh4 {[%clk 0:00:07]} 60. Kh1 {[%clk 0:00:17]}  Kg3 {[%clk 0:00:07]} 61. Kg1 {[%clk 0:00:17]}  h4 {[%clk 0:00:06]} 62. Kh1 {[%clk 0:00:18]}  Bb6 {[%clk 0:00:07]} 1/2-1/2


[Site "https://www.chess.com"]